[Event "*** Titled Tuesday Blitz"]
[Site "Chess.com"]
[Date "2021.02.02"]
[Round "8"]
[White "cstevens1"]
[Black "Godzillator"]
[Result "1-0"]
[WhiteElo "2666"]
[BlackElo "2307"]
[TimeControl "180+1"]
[EndTime "11:26:45 PST"]
[Termination "cstevens1 won by resignation"]

1. e4 {[%clk 0:03:00.9]} 1... c6 {[%clk 0:02:59.5]} 2. Nf3 {[%clk 0:02:59.4]}
2... d5 {[%clk 0:02:59.5]} 3. exd5 {[%clk 0:03:00.3]} 3... cxd5 {[%clk
0:02:59.2]} 4. Ne5 {[%clk 0:03:00.6]} 4... a6 {[%clk 0:02:57]} 5. d4 {[%clk
0:02:59.8]} 5... Nf6 {[%clk 0:02:56.7]} 6. Bd3 {[%clk 0:02:59]} 6... Nc6 {[%clk
0:02:56.7]} 7. Nxc6 {[%clk 0:02:58.6]} 7... bxc6 {[%clk 0:02:56.6]} 8. O-O
{[%clk 0:02:59.2]} 8... Bg4 {[%clk 0:02:56.6]} 9. Qe1 {[%clk 0:02:53.8]} 9... e6
{[%clk 0:02:56.1]} 10. Bf4 {[%clk 0:02:50.1]} 10... Bd6 {[%clk 0:02:55.4]} 11.
Bxd6 {[%clk 0:02:47.6]} 11... Qxd6 {[%clk 0:02:55.6]} 12. Nd2 {[%clk 0:02:48.1]}
12... c5 {[%clk 0:02:52.1]} 13. dxc5 {[%clk 0:02:47.1]} 13... Qxc5 {[%clk
0:02:52.5]} 14. Nb3 {[%clk 0:02:31.8]} 14... Qb6 {[%clk 0:02:51.4]} 15. Qe5
{[%clk 0:02:22]} 15... O-O {[%clk 0:02:48.3]} 16. h3 {[%clk 0:02:22.1]} 16...
Bh5 {[%clk 0:02:46.4]} 17. c4 {[%clk 0:01:57]} 17... Bg6 {[%clk 0:02:42.4]} 18.
c5 {[%clk 0:01:47.9]} 18... Qb8 {[%clk 0:02:42.3]} 19. Qxb8 {[%clk 0:01:13.1]}
19... Rfxb8 {[%clk 0:02:38.3]} 20. Bxg6 {[%clk 0:01:14]} 20... hxg6 {[%clk
0:02:37.8]} 21. Rab1 {[%clk 0:01:14.6]} 21... a5 {[%clk 0:02:36]} 22. Rfc1
{[%clk 0:01:14.8]} 22... a4 {[%clk 0:02:35.5]} 23. Nd4 {[%clk 0:01:15.1]} 23...
Ra7 {[%clk 0:02:28.3]} 24. Nc6 {[%clk 0:01:14.6]} 24... Rab7 {[%clk 0:02:27.5]}
25. Nxb8 {[%clk 0:01:14.6]} 25... Rxb8 {[%clk 0:02:28.4]} 26. b4 {[%clk
0:01:12.8]} 26... axb3 {[%clk 0:02:27]} 27. Rxb3 {[%clk 0:01:10]} 27... Rc8
{[%clk 0:02:26.9]} 28. c6 {[%clk 0:01:10.2]} 28... Kf8 {[%clk 0:02:25.7]} 29. a4
{[%clk 0:01:06.6]} 29... Ke7 {[%clk 0:02:25.5]} 30. a5 {[%clk 0:01:07]} 30...
Kd6 {[%clk 0:02:25.5]} 31. a6 {[%clk 0:01:07.3]} 31... Ne8 {[%clk 0:02:19.4]}
32. a7 {[%clk 0:01:04.5]} 32... Ra8 {[%clk 0:02:19.2]} 33. Rb8 {[%clk
0:01:03.6]} 33... Nc7 {[%clk 0:02:18.8]} 34. Rxa8 {[%clk 0:01:03.5]} 34... Nxa8
{[%clk 0:02:19]} 35. c7 {[%clk 0:01:04.1]} 1-0

[Event "*** Titled Tuesday Blitz"]
[Site "Chess.com"]
[Date "2021.02.02"]
[Round "8"]
[White "mjray79"]
[Black "QuintilianoR"]
[Result "0-1"]
[WhiteElo "2517"]
[BlackElo "2709"]
[TimeControl "180+1"]
[EndTime "11:26:46 PST"]
[Termination "QuintilianoR won by checkmate"]

1. d4 {[%clk 0:03:00.9]} 1... Nf6 {[%clk 0:02:59.4]} 2. c4 {[%clk 0:03:01.4]}
2... e6 {[%clk 0:02:59.9]} 3. g3 {[%clk 0:03:01.4]} 3... d5 {[%clk 0:02:58]} 4.
Bg2 {[%clk 0:03:01.8]} 4... Be7 {[%clk 0:02:58.4]} 5. Nf3 {[%clk 0:03:02.4]}
5... O-O {[%clk 0:02:58.9]} 6. O-O {[%clk 0:03:02.7]} 6... dxc4 {[%clk
0:02:58.5]} 7. Qc2 {[%clk 0:03:03.2]} 7... a6 {[%clk 0:02:57.8]} 8. a4 {[%clk
0:03:03.6]} 8... c5 {[%clk 0:02:58]} 9. Qxc4 {[%clk 0:02:52]} 9... cxd4 {[%clk
0:02:55.2]} 10. Nxd4 {[%clk 0:02:52]} 10... e5 {[%clk 0:02:54.4]} 11. Nf3 {[%clk
0:02:50.3]} 11... Nc6 {[%clk 0:02:54.9]} 12. Nc3 {[%clk 0:02:48.3]} 12... Be6
{[%clk 0:02:54.5]} 13. Qh4 {[%clk 0:02:41.5]} 13... h6 {[%clk 0:02:31.4]} 14.
Rd1 {[%clk 0:02:11.7]} 14... Qb6 {[%clk 0:01:46.7]} 15. Bxh6 {[%clk 0:02:01.7]}
15... gxh6 {[%clk 0:01:33.3]} 16. Qxh6 {[%clk 0:02:02.6]} 16... Qxf2+ {[%clk
0:01:22.3]} 17. Kh1 {[%clk 0:01:58.4]} 17... Ng4 {[%clk 0:01:19.7]} 18. Qh5
{[%clk 0:01:47.5]} 18... Qe3 {[%clk 0:01:15.1]} 19. Nd5 {[%clk 0:01:36.8]} 19...
Nf2+ {[%clk 0:01:11.9]} 20. Kg1 {[%clk 0:01:37]} 20... Nh3+ {[%clk 0:01:11.9]}
21. Kh1 {[%clk 0:01:36.1]} 21... Qg1+ {[%clk 0:01:12]} 22. Rxg1 {[%clk
0:01:36.6]} 22... Nf2# {[%clk 0:01:12.5]} 0-1

[Event "*** Titled Tuesday Blitz"]
[Site "Chess.com"]
[Date "2021.02.02"]
[Round "8"]
[White "Julianos82"]
[Black "NMJeevanK"]
[Result "0-1"]
[WhiteElo "2321"]
[BlackElo "2524"]
[TimeControl "180+1"]
[EndTime "11:26:48 PST"]
[Termination "NMJeevanK won by checkmate"]

1. d4 {[%clk 0:03:00.9]} 1... Nf6 {[%clk 0:02:59.6]} 2. Nf3 {[%clk 0:03:00.7]}
2... e6 {[%clk 0:03:00.5]} 3. Bg5 {[%clk 0:03:00.3]} 3... d5 {[%clk 0:03:01.4]}
4. e3 {[%clk 0:03:00.2]} 4... h6 {[%clk 0:03:01.8]} 5. Bh4 {[%clk 0:02:59.3]}
5... c5 {[%clk 0:03:01.4]} 6. c3 {[%clk 0:02:58.6]} 6... Nc6 {[%clk 0:03:01.8]}
7. Nbd2 {[%clk 0:02:59.1]} 7... cxd4 {[%clk 0:03:02.1]} 8. exd4 {[%clk
0:02:59.3]} 8... Be7 {[%clk 0:03:02.3]} 9. Bd3 {[%clk 0:02:59.1]} 9... O-O
{[%clk 0:03:01.8]} 10. O-O {[%clk 0:02:59]} 10... Nd7 {[%clk 0:03:00]} 11. Bg3
{[%clk 0:02:56.9]} 11... f5 {[%clk 0:02:58.9]} 12. Qe2 {[%clk 0:02:50.1]} 12...
Nf6 {[%clk 0:02:48.1]} 13. Ne5 {[%clk 0:02:47.9]} 13... Ne4 {[%clk 0:02:39.6]}
14. f3 {[%clk 0:02:30.2]} 14... Nxg3 {[%clk 0:02:34.1]} 15. hxg3 {[%clk
0:02:31.1]} 15... Nxe5 {[%clk 0:02:34]} 16. Qxe5 {[%clk 0:02:29.1]} 16... Bd6
{[%clk 0:02:32.5]} 17. Qe1 {[%clk 0:02:27.7]} 17... e5 {[%clk 0:01:56.6]} 18.
dxe5 {[%clk 0:02:23.1]} 18... Bc5+ {[%clk 0:01:56.8]} 19. Kh2 {[%clk 0:02:12.2]}
19... Qg5 {[%clk 0:01:53.6]} 20. g4 {[%clk 0:01:49.7]} 20... fxg4 {[%clk
0:01:41.3]} 21. Nb3 {[%clk 0:01:46.8]} 21... Qh5+ {[%clk 0:01:34.3]} 22. Kg3
{[%clk 0:01:45.6]} 22... gxf3 {[%clk 0:01:19.8]} 23. Rxf3 {[%clk 0:01:38.6]}
23... Rxf3+ {[%clk 0:01:16.5]} 24. gxf3 {[%clk 0:01:39.5]} 24... Qh3+ {[%clk
0:01:14.9]} 25. Kf4 {[%clk 0:01:38.9]} 25... g5# {[%clk 0:01:15.6]} 0-1

[Event "*** Titled Tuesday Blitz"]
[Site "Chess.com"]
[Date "2021.02.02"]
[Round "8"]
[White "nikitadovbnya2008"]
[Black "milenapn"]
[Result "0-1"]
[WhiteElo "2130"]
[BlackElo "2059"]
[TimeControl "180+1"]
[EndTime "11:27:01 PST"]
[Termination "milenapn won by checkmate"]

1. Nf3 {[%clk 0:03:00.9]} 1... d5 {[%clk 0:02:58.9]} 2. d4 {[%clk 0:03:00.1]}
2... g6 {[%clk 0:02:59.1]} 3. c4 {[%clk 0:02:59.9]} 3... Bg7 {[%clk 0:02:59.4]}
4. cxd5 {[%clk 0:02:59.5]} 4... Qxd5 {[%clk 0:02:59.3]} 5. Nc3 {[%clk
0:02:59.3]} 5... Qa5 {[%clk 0:02:59.3]} 6. Bf4 {[%clk 0:02:51.1]} 6... Nc6
{[%clk 0:02:56.4]} 7. e3 {[%clk 0:02:48.2]} 7... Bf5 {[%clk 0:02:53.9]} 8. Bc4
{[%clk 0:02:46.2]} 8... Qb4 {[%clk 0:02:43.1]} 9. Qe2 {[%clk 0:02:43.1]} 9...
Na5 {[%clk 0:02:34.6]} 10. Bb5+ {[%clk 0:02:26.4]} 10... c6 {[%clk 0:02:34]} 11.
a3 {[%clk 0:02:21.2]} 11... Qb3 {[%clk 0:02:29.3]} 12. Ba4 {[%clk 0:02:11]}
12... Qc4 {[%clk 0:02:24.4]} 13. Qd1 {[%clk 0:02:09.8]} 13... b5 {[%clk
0:02:03.6]} 14. Nd2 {[%clk 0:01:56.2]} 14... Qd3 {[%clk 0:01:46]} 15. g4 {[%clk
0:01:34.9]} 15... bxa4 {[%clk 0:01:30.2]} 16. Qxa4 {[%clk 0:01:25.9]} 16... Bxg4
{[%clk 0:01:17.9]} 17. Nd5 {[%clk 0:01:09.1]} 17... Qe2# {[%clk 0:01:14.8]} 0-1

[Event "*** Titled Tuesday Blitz"]
[Site "Chess.com"]
[Date "2021.02.02"]
[Round "8"]
[White "Gerryisplaying"]
[Black "kakakz"]
[Result "1-0"]
[WhiteElo "2322"]
[BlackElo "2442"]
[TimeControl "180+1"]
[EndTime "11:27:03 PST"]
[Termination "Gerryisplaying won by resignation"]

1. d4 {[%clk 0:03:00.9]} 1... d6 {[%clk 0:02:56.3]} 2. e4 {[%clk 0:02:59.1]}
2... Nd7 {[%clk 0:02:57.2]} 3. Nf3 {[%clk 0:02:52.9]} 3... g6 {[%clk 0:02:58.1]}
4. Nc3 {[%clk 0:02:51.8]} 4... Bg7 {[%clk 0:02:57.6]} 5. Be3 {[%clk 0:02:51.3]}
5... e5 {[%clk 0:02:53.6]} 6. dxe5 {[%clk 0:02:39.5]} 6... Nxe5 {[%clk
0:02:50.8]} 7. Nxe5 {[%clk 0:02:38.5]} 7... Bxe5 {[%clk 0:02:48.7]} 8. Bc4
{[%clk 0:02:33.7]} 8... Be6 {[%clk 0:02:43.8]} 9. Bxe6 {[%clk 0:02:21.8]} 9...
fxe6 {[%clk 0:02:43.2]} 10. O-O {[%clk 0:02:21.4]} 10... Nf6 {[%clk 0:02:40.1]}
11. Qd3 {[%clk 0:02:09.6]} 11... Ng4 {[%clk 0:02:33.5]} 12. f4 {[%clk
0:01:57.5]} 12... Nxe3 {[%clk 0:02:28.9]} 13. Qxe3 {[%clk 0:01:58.4]} 13... Bg7
{[%clk 0:02:28.5]} 14. f5 {[%clk 0:01:52.8]} 14... Qe7 {[%clk 0:02:13.1]} 15.
fxe6 {[%clk 0:01:44.2]} 15... Qxe6 {[%clk 0:02:04.6]} 16. Nd5 {[%clk 0:01:42.7]}
16... O-O-O {[%clk 0:01:22.5]} 17. Qxa7 {[%clk 0:01:38.6]} 17... Qxe4 {[%clk
0:01:22]} 18. Qa8+ {[%clk 0:01:32.5]} 18... Kd7 {[%clk 0:01:21.5]} 19. Qxb7
{[%clk 0:01:33.4]} 1-0

[Event "*** Titled Tuesday Blitz"]
[Site "Chess.com"]
[Date "2021.02.02"]
[Round "8"]
[White "elohunter1999"]
[Black "ChessFighter1975"]
[Result "1-0"]
[WhiteElo "2670"]
[BlackElo "2440"]
[TimeControl "180+1"]
[EndTime "11:27:09 PST"]
[Termination "elohunter1999 won by resignation"]

1. d4 {[%clk 0:03:00.9]} 1... d6 {[%clk 0:03:00.2]} 2. e4 {[%clk 0:02:59.1]}
2... Nf6 {[%clk 0:03:00.6]} 3. Nc3 {[%clk 0:02:58.2]} 3... Nbd7 {[%clk 0:03:01]}
4. Nf3 {[%clk 0:02:50.5]} 4... e5 {[%clk 0:03:01.4]} 5. g4 {[%clk 0:02:44.1]}
5... h6 {[%clk 0:02:58.5]} 6. Rg1 {[%clk 0:02:27.9]} 6... c6 {[%clk 0:02:56.5]}
7. Be3 {[%clk 0:02:24.1]} 7... b5 {[%clk 0:02:54.4]} 8. a3 {[%clk 0:02:20.5]}
8... Bb7 {[%clk 0:02:53]} 9. Qd2 {[%clk 0:02:14.6]} 9... a5 {[%clk 0:02:52.6]}
10. dxe5 {[%clk 0:01:56.4]} 10... dxe5 {[%clk 0:02:53.5]} 11. Bd3 {[%clk
0:01:56.3]} 11... b4 {[%clk 0:02:50.5]} 12. Ne2 {[%clk 0:01:53.1]} 12... c5
{[%clk 0:02:41.3]} 13. Ng3 {[%clk 0:01:50.6]} 13... Nxg4 {[%clk 0:02:36.3]} 14.
Bb5 {[%clk 0:01:45.9]} 14... Nxe3 {[%clk 0:02:32]} 15. fxe3 {[%clk 0:01:42.9]}
15... Qc7 {[%clk 0:02:20.8]} 16. Nxe5 {[%clk 0:01:38.7]} 16... Bc8 {[%clk
0:02:07.9]} 17. O-O-O {[%clk 0:01:35.7]} 17... Ra7 {[%clk 0:02:02.4]} 18. Qd5
{[%clk 0:01:33.5]} 1-0

[Event "*** Titled Tuesday Blitz"]
[Site "Chess.com"]
[Date "2021.02.02"]
[Round "8"]
[White "SanQui14"]
[Black "Chuchofrio1"]
[Result "1-0"]
[WhiteElo "2430"]
[BlackElo "2274"]
[TimeControl "180+1"]
[EndTime "11:27:11 PST"]
[Termination "SanQui14 won by resignation"]

1. d4 {[%clk 0:03:00.9]} 1... Nf6 {[%clk 0:02:53.3]} 2. c4 {[%clk 0:03:00.4]}
2... g6 {[%clk 0:02:50.9]} 3. Nc3 {[%clk 0:02:59.9]} 3... Bg7 {[%clk 0:02:49.8]}
4. e4 {[%clk 0:03:00.4]} 4... d6 {[%clk 0:02:48.6]} 5. Nf3 {[%clk 0:03:00.6]}
5... O-O {[%clk 0:02:48.1]} 6. Be2 {[%clk 0:03:01.3]} 6... e5 {[%clk 0:02:48.3]}
7. O-O {[%clk 0:03:01.9]} 7... Nc6 {[%clk 0:02:47.7]} 8. d5 {[%clk 0:03:02.6]}
8... Ne7 {[%clk 0:02:48.3]} 9. b4 {[%clk 0:03:03.2]} 9... a5 {[%clk 0:02:40.9]}
10. Ba3 {[%clk 0:03:02.9]} 10... axb4 {[%clk 0:02:39.5]} 11. Bxb4 {[%clk
0:03:03]} 11... b6 {[%clk 0:02:07]} 12. a4 {[%clk 0:03:02.4]} 12... Nd7 {[%clk
0:02:05]} 13. a5 {[%clk 0:03:00.1]} 13... bxa5 {[%clk 0:02:03.7]} 14. Bxa5
{[%clk 0:02:56]} 14... Nc5 {[%clk 0:02:02.5]} 15. Qc2 {[%clk 0:02:52.1]} 15...
Ba6 {[%clk 0:02:00.3]} 16. Nd2 {[%clk 0:02:44.4]} 16... f5 {[%clk 0:01:43.3]}
17. f3 {[%clk 0:02:42.6]} 17... f4 {[%clk 0:01:38.6]} 18. Nb5 {[%clk 0:02:37.9]}
18... Rc8 {[%clk 0:01:22]} 19. Nb3 {[%clk 0:02:31]} 19... Bxb5 {[%clk
0:01:17.1]} 20. Nxc5 {[%clk 0:02:26.3]} 20... dxc5 {[%clk 0:01:14.1]} 21. cxb5
{[%clk 0:02:26.2]} 21... Qd6 {[%clk 0:01:07.7]} 22. Rfc1 {[%clk 0:02:25.5]}
22... g5 {[%clk 0:01:04.6]} 23. Qxc5 {[%clk 0:02:25.3]} 23... Qf6 {[%clk
0:01:04.5]} 24. Bxc7 {[%clk 0:02:21]} 24... Ng6 {[%clk 0:00:51.2]} 25. Ra6
{[%clk 0:02:19.3]} 25... Qf7 {[%clk 0:00:48.1]} 26. d6 {[%clk 0:02:19.5]} 26...
Qd7 {[%clk 0:00:47.5]} 27. b6 {[%clk 0:02:15.1]} 27... h5 {[%clk 0:00:42.4]} 28.
b7 {[%clk 0:02:15.2]} 28... Rce8 {[%clk 0:00:41.6]} 29. Bb5 {[%clk 0:02:13.3]}
29... Qf7 {[%clk 0:00:40.7]} 30. Bxe8 {[%clk 0:02:13]} 30... Rxe8 {[%clk
0:00:40.9]} 31. Ra8 {[%clk 0:02:11.6]} 31... g4 {[%clk 0:00:40.2]} 32. Rxe8+
{[%clk 0:02:11.3]} 32... Qxe8 {[%clk 0:00:39.5]} 33. b8=Q {[%clk 0:02:11.7]} 1-0

[Event "*** Titled Tuesday Blitz"]
[Site "Chess.com"]
[Date "2021.02.02"]
[Round "8"]
[White "Rsnr"]
[Black "Frolyanov_D"]
[Result "0-1"]
[WhiteElo "2771"]
[BlackElo "2635"]
[TimeControl "180+1"]
[EndTime "11:27:23 PST"]
[Termination "Frolyanov_D won by resignation"]

1. d4 {[%clk 0:03:00.9]} 1... d5 {[%clk 0:02:58.9]} 2. c4 {[%clk 0:03:01]} 2...
e6 {[%clk 0:02:58.7]} 3. Nc3 {[%clk 0:02:57.6]} 3... c6 {[%clk 0:02:57.6]} 4. e4
{[%clk 0:02:51.9]} 4... dxe4 {[%clk 0:02:58.5]} 5. Nxe4 {[%clk 0:02:52.8]} 5...
Bb4+ {[%clk 0:02:57.6]} 6. Bd2 {[%clk 0:02:53.2]} 6... Qxd4 {[%clk 0:02:56.8]}
7. Bxb4 {[%clk 0:02:53.7]} 7... Qxe4+ {[%clk 0:02:56.9]} 8. Ne2 {[%clk
0:02:54.6]} 8... Na6 {[%clk 0:02:54.5]} 9. Bf8 {[%clk 0:02:54.5]} 9... Ne7
{[%clk 0:02:52.1]} 10. Bxg7 {[%clk 0:02:53.9]} 10... Rg8 {[%clk 0:02:47.6]} 11.
Qd4 {[%clk 0:02:53.1]} 11... Qxd4 {[%clk 0:02:44.8]} 12. Bxd4 {[%clk 0:02:54]}
12... Nb4 {[%clk 0:02:42.7]} 13. Kd2 {[%clk 0:02:50.4]} 13... e5 {[%clk
0:02:42.1]} 14. Bxe5 {[%clk 0:02:41.6]} 14... Bf5 {[%clk 0:02:41.4]} 15. Kc3
{[%clk 0:02:42.1]} 15... Nd3 {[%clk 0:02:22.9]} 16. Bg3 {[%clk 0:02:37.6]} 16...
O-O-O {[%clk 0:02:18.9]} 17. Nd4 {[%clk 0:02:24.5]} 17... Nc5 {[%clk 0:02:18.5]}
18. Nxf5 {[%clk 0:02:19.7]} 18... Ne4+ {[%clk 0:02:13.6]} 19. Kb4 {[%clk
0:02:01.7]} 19... c5+ {[%clk 0:02:13.4]} 20. Ka3 {[%clk 0:02:01.2]} 20... Nxf5
{[%clk 0:02:12]} 21. Re1 {[%clk 0:02:01.5]} 21... Nexg3 {[%clk 0:01:58.8]} 22.
hxg3 {[%clk 0:01:57.6]} 22... Rg6 {[%clk 0:01:58.2]} 23. Rxh7 {[%clk 0:01:24.7]}
23... Nd4 {[%clk 0:01:51]} 24. b3 {[%clk 0:00:59.3]} 24... Nc2+ {[%clk
0:01:50.7]} 25. Kb2 {[%clk 0:01:00.1]} 25... Nxe1 {[%clk 0:01:51.2]} 26. Rxf7
{[%clk 0:01:00.2]} 26... Rd2+ {[%clk 0:01:46.3]} 27. Kc1 {[%clk 0:00:52.6]}
27... Rgd6 {[%clk 0:01:43.5]} 28. g4 {[%clk 0:00:46.5]} 28... Rc2+ {[%clk
0:01:42.1]} 0-1

[Event "*** Titled Tuesday Blitz"]
[Site "Chess.com"]
[Date "2021.02.02"]
[Round "8"]
[White "ChristopherYoo"]
[Black "Noam_Vitenberg"]
[Result "1-0"]
[WhiteElo "2838"]
[BlackElo "2503"]
[TimeControl "180+1"]
[EndTime "11:27:29 PST"]
[Termination "ChristopherYoo won by checkmate"]

1. d4 {[%clk 0:03:00.9]} 1... d5 {[%clk 0:02:57.6]} 2. Nf3 {[%clk 0:03:01.8]}
2... e6 {[%clk 0:02:57.3]} 3. c4 {[%clk 0:03:01.8]} 3... Nf6 {[%clk 0:02:57.8]}
4. Nc3 {[%clk 0:03:01.9]} 4... c6 {[%clk 0:02:56.5]} 5. Qd3 {[%clk 0:03:00.1]}
5... Nbd7 {[%clk 0:02:49.9]} 6. g3 {[%clk 0:02:56.8]} 6... b6 {[%clk 0:02:47.1]}
7. e4 {[%clk 0:02:51.1]} 7... dxe4 {[%clk 0:02:45.8]} 8. Nxe4 {[%clk 0:02:51]}
8... Bb4+ {[%clk 0:02:46.3]} 9. Bd2 {[%clk 0:02:50.8]} 9... Bxd2+ {[%clk
0:02:46.3]} 10. Nfxd2 {[%clk 0:02:51.1]} 10... O-O {[%clk 0:02:45.1]} 11. Bg2
{[%clk 0:02:51.1]} 11... Bb7 {[%clk 0:02:43.3]} 12. Nd6 {[%clk 0:02:49.6]} 12...
Qc7 {[%clk 0:02:42.1]} 13. Nxb7 {[%clk 0:02:49.8]} 13... Qxb7 {[%clk 0:02:43]}
14. O-O {[%clk 0:02:50.2]} 14... Rac8 {[%clk 0:02:43]} 15. a4 {[%clk 0:02:50]}
15... Qc7 {[%clk 0:02:41.8]} 16. b4 {[%clk 0:02:48.6]} 16... Rfd8 {[%clk
0:02:34.1]} 17. Rfe1 {[%clk 0:02:48.1]} 17... c5 {[%clk 0:02:27.6]} 18. bxc5
{[%clk 0:02:39.9]} 18... Nxc5 {[%clk 0:02:17]} 19. Qc3 {[%clk 0:02:39.6]} 19...
Ncd7 {[%clk 0:02:13.3]} 20. a5 {[%clk 0:02:39]} 20... b5 {[%clk 0:01:58.2]} 21.
c5 {[%clk 0:02:37.7]} 21... a6 {[%clk 0:01:58.6]} 22. Rac1 {[%clk 0:02:29.6]}
22... Nb8 {[%clk 0:01:58.2]} 23. Ne4 {[%clk 0:02:07.4]} 23... Nxe4 {[%clk
0:01:53.1]} 24. Rxe4 {[%clk 0:01:50.7]} 24... Nc6 {[%clk 0:01:53.1]} 25. Ra1
{[%clk 0:01:50.4]} 25... Rd7 {[%clk 0:01:31.5]} 26. Rg4 {[%clk 0:01:48.1]} 26...
Rcd8 {[%clk 0:01:15.4]} 27. Bxc6 {[%clk 0:01:44.5]} 27... Re7 {[%clk 0:00:45.9]}
28. d5 {[%clk 0:01:42.6]} 28... f5 {[%clk 0:00:40.2]} 29. d6 {[%clk 0:01:41.9]}
29... Qxc6 {[%clk 0:00:39.8]} 30. dxe7 {[%clk 0:01:41.8]} 30... Re8 {[%clk
0:00:40.7]} 31. Qxg7# {[%clk 0:01:41.5]} 1-0

[Event "*** Titled Tuesday Blitz"]
[Site "Chess.com"]
[Date "2021.02.02"]
[Round "8"]
[White "Snegokhod"]
[Black "Aslanov_Umid"]
[Result "1-0"]
[WhiteElo "2535"]
[BlackElo "2337"]
[TimeControl "180+1"]
[EndTime "11:27:29 PST"]
[Termination "Snegokhod won by resignation"]

1. e4 {[%clk 0:03:00.9]} 1... c5 {[%clk 0:03:00]} 2. Nf3 {[%clk 0:03:00.7]} 2...
d6 {[%clk 0:02:59.9]} 3. d4 {[%clk 0:03:00.7]} 3... cxd4 {[%clk 0:03:00.8]} 4.
Qxd4 {[%clk 0:03:01.4]} 4... a6 {[%clk 0:02:59.8]} 5. Be3 {[%clk 0:03:00.9]}
5... Nc6 {[%clk 0:03:00.1]} 6. Qb6 {[%clk 0:03:01.1]} 6... Qxb6 {[%clk
0:02:59.3]} 7. Bxb6 {[%clk 0:03:02]} 7... Nf6 {[%clk 0:03:00.1]} 8. Nc3 {[%clk
0:03:01.6]} 8... Nd7 {[%clk 0:02:59.5]} 9. Nd5 {[%clk 0:03:01.1]} 9... Nxb6
{[%clk 0:02:54.4]} 10. Nxb6 {[%clk 0:03:02]} 10... Rb8 {[%clk 0:02:54.8]} 11.
O-O-O {[%clk 0:02:58.9]} 11... Bg4 {[%clk 0:02:52.8]} 12. Be2 {[%clk 0:02:57.5]}
12... Bxf3 {[%clk 0:02:52.4]} 13. Bxf3 {[%clk 0:02:56.7]} 13... e5 {[%clk
0:02:51.9]} 14. c3 {[%clk 0:02:51.5]} 14... Be7 {[%clk 0:02:49.7]} 15. Kc2
{[%clk 0:02:51]} 15... Bd8 {[%clk 0:02:40.5]} 16. Nc4 {[%clk 0:02:49.8]} 16...
Bc7 {[%clk 0:02:33.4]} 17. Nxd6+ {[%clk 0:02:49.8]} 17... Bxd6 {[%clk
0:02:33.9]} 18. Rxd6 {[%clk 0:02:49.1]} 18... Ke7 {[%clk 0:02:34.8]} 19. Rhd1
{[%clk 0:02:48.4]} 19... Rhd8 {[%clk 0:02:35.3]} 20. Rxd8 {[%clk 0:02:48.2]}
20... Rxd8 {[%clk 0:02:36.2]} 21. Rxd8 {[%clk 0:02:47.5]} 21... Kxd8 {[%clk
0:02:37.1]} 22. b4 {[%clk 0:02:44.8]} 22... Ke7 {[%clk 0:02:35.1]} 23. a4 {[%clk
0:02:44.7]} 23... Kd6 {[%clk 0:02:34.9]} 24. a5 {[%clk 0:02:44.5]} 24... Ne7
{[%clk 0:02:29.1]} 25. Be2 {[%clk 0:02:42.5]} 25... Ng6 {[%clk 0:02:25.4]} 26.
g3 {[%clk 0:02:41.5]} 26... Ne7 {[%clk 0:02:24.9]} 27. Bc4 {[%clk 0:02:41.3]}
27... f6 {[%clk 0:02:22.4]} 28. Kd3 {[%clk 0:02:40.1]} 28... g6 {[%clk
0:02:19.7]} 29. h4 {[%clk 0:02:36.9]} 29... f5 {[%clk 0:02:19.6]} 30. Bf7 {[%clk
0:02:32.2]} 30... Nc6 {[%clk 0:02:13.1]} 31. Bd5 {[%clk 0:02:28.5]} 31... Nd8
{[%clk 0:02:08.6]} 32. f4 {[%clk 0:02:17.8]} 32... h6 {[%clk 0:02:04.2]} 33. Ke3
{[%clk 0:02:12.9]} 33... exf4+ {[%clk 0:01:52.3]} 34. gxf4 {[%clk 0:02:09.4]}
34... Nc6 {[%clk 0:01:36.9]} 35. Bxc6 {[%clk 0:02:09.2]} 35... Kxc6 {[%clk
0:01:37.8]} 36. c4 {[%clk 0:01:51]} 36... Kd6 {[%clk 0:01:37.2]} 37. Kd4 {[%clk
0:01:48.3]} 37... Ke6 {[%clk 0:01:33.9]} 38. e5 {[%clk 0:01:34.4]} 38... g5
{[%clk 0:01:32.2]} 39. fxg5 {[%clk 0:01:29.7]} 39... hxg5 {[%clk 0:01:32.8]} 40.
hxg5 {[%clk 0:01:29.4]} 40... f4 {[%clk 0:01:33.7]} 41. Ke4 {[%clk 0:01:29.6]}
1-0

[Event "*** Titled Tuesday Blitz"]
[Site "Chess.com"]
[Date "2021.02.02"]
[Round "8"]
[White "awesomevishesh"]
[Black "AsaHoffmann"]
[Result "1-0"]
[WhiteElo "2501"]
[BlackElo "2357"]
[TimeControl "180+1"]
[EndTime "11:27:42 PST"]
[Termination "awesomevishesh won by resignation"]

1. e4 {[%clk 0:03:00.9]} 1... d6 {[%clk 0:02:56]} 2. d4 {[%clk 0:03:00.4]} 2...
Nf6 {[%clk 0:02:52.8]} 3. Nc3 {[%clk 0:03:00]} 3... c6 {[%clk 0:02:52.6]} 4. g3
{[%clk 0:02:59.4]} 4... Nbd7 {[%clk 0:02:49]} 5. Bg2 {[%clk 0:02:59]} 5... e5
{[%clk 0:02:48.7]} 6. Nge2 {[%clk 0:02:58.7]} 6... Be7 {[%clk 0:02:48.4]} 7. O-O
{[%clk 0:02:58.3]} 7... b5 {[%clk 0:02:48.3]} 8. a3 {[%clk 0:02:52.1]} 8... a6
{[%clk 0:02:48.2]} 9. h3 {[%clk 0:02:51.7]} 9... Bb7 {[%clk 0:02:48.1]} 10. f4
{[%clk 0:02:48.3]} 10... Qc7 {[%clk 0:02:46.6]} 11. Be3 {[%clk 0:02:45.3]} 11...
c5 {[%clk 0:02:45.8]} 12. dxe5 {[%clk 0:02:33.2]} 12... dxe5 {[%clk 0:02:44.4]}
13. Nd5 {[%clk 0:02:31.7]} 13... Nxd5 {[%clk 0:02:41.7]} 14. exd5 {[%clk
0:02:32.6]} 14... Bd6 {[%clk 0:02:37.3]} 15. Nc3 {[%clk 0:02:20.5]} 15... exf4
{[%clk 0:02:33.6]} 16. Bxf4 {[%clk 0:02:19.9]} 16... Bxf4 {[%clk 0:02:30.2]} 17.
Rxf4 {[%clk 0:02:19.4]} 17... O-O {[%clk 0:02:29.5]} 18. d6 {[%clk 0:02:17.9]}
18... Qb6 {[%clk 0:02:26.7]} 19. Bxb7 {[%clk 0:02:17]} 19... Qxb7 {[%clk
0:02:26.1]} 20. Nd5 {[%clk 0:02:17.4]} 20... Rad8 {[%clk 0:02:17]} 21. Qh5
{[%clk 0:02:08.5]} 21... g6 {[%clk 0:02:00.5]} 22. Qg5 {[%clk 0:01:44.3]} 22...
h6 {[%clk 0:01:11.8]} 23. Qxh6 {[%clk 0:01:40.3]} 23... Qxd5 {[%clk 0:01:10.5]}
24. Rh4 {[%clk 0:01:39.6]} 24... Qd4+ {[%clk 0:00:59.3]} 25. Rxd4 {[%clk
0:01:38.6]} 25... cxd4 {[%clk 0:00:58.9]} 26. Re1 {[%clk 0:01:37.6]} 26... Nf6
{[%clk 0:00:53.4]} 27. Qf4 {[%clk 0:01:30.9]} 27... Kg7 {[%clk 0:00:52.1]} 28.
Qxd4 {[%clk 0:01:29.7]} 28... Rd7 {[%clk 0:00:52.1]} 29. Rf1 {[%clk 0:01:29]}
1-0